Cogmind - Beta 13 X1 @@@ ROGUE MODE // 2023.08.18 @ 16:45:45 Player: VR-DUX Result: Destroyed by CO-ZTD(B) with Heavy Battle Rifle Performance ------------- Evolutions (1) 500 Regions Visited (5) 1000 Robots Destroyed (111) 555 Value Destroyed (2481) 2481 Prototype IDs (3) 60 Alien Tech Used (0) 0 Bonus (26) 26 TOTAL SCORE: 4622 Bonus ------- High Alert Combat Kills 92 Follower Combat Kills 7 Friendly Fire -73 Cogmind --------- Core Integrity 0/400 Matter 100/300 Energy 100/100 System Corruption 0% Temperature Cool (0) Movement Core (350) Ox6 Location -7/Zion Parts ------- > --- POWER (1) -------- (None) > --- PROPULSION (3) --- (None) > --- UTILITY (3) ------ Large Storage Unit > --- WEAPON (2) ------- (None) > --- INVENTORY (15) --- Light Ion Engine Light Treads Medium Storage Unit Huge Storage Unit Improved Propulsion Shielding Improved Utility Shielding Light Armor Plating Light Armor Plating System Shield System Shield Sensor Drone Bay (20/20) Improved Light Cannon Rocket Launcher Mace Self-destruct Interrupter (50) Peak State ------------ > --- POWER ------------ Improved Ion Engine > --- PROPULSION ------- Light Treads Light Treads Light Treads > --- UTILITY ---------- Large Storage Unit Experimental Sensor Array Hardened Light Armor Plating > --- WEAPON ----------- Improved Assault Rifle Mini Grenade Launcher > --- INVENTORY -------- Light Treads Light Treads Medium Storage Unit Huge Storage Unit Structural Scanner Improved Propulsion Shielding Improved Utility Shielding Light Armor Plating System Shield System Shield Sensor Drone Bay Improved Light Cannon Rocket Launcher Mace [Rating: 25] Favorites ----------- Power Improved Ion Engine Engine Improved Ion Engine Propulsion Light Treads Treads Light Treads Leg Aluminum Leg Wheel Compact Wheel Utility Large Storage Unit Device Structural Scanner Storage Large Storage Unit Processor Signal Interpreter Protection Hardened Light Armor Plating Weapon Assault Rifle Energy Cannon EM Pulse Cannon Ballistic Gun Assault Rifle Ballistic Cannon Improved Light Cannon Launcher Mini Grenade Launcher Impact Weapon Mace Slashing Weapon Mining Claw Build | -11 -10 -10 -9 -9 -7 ------- Run | Jun Mat Min Mat Min Zio Slots Evolved 2 | . . . 2 . . Power . | . . . . . . Propulsion 1 | . . . 1 . . Utility 1 | . . . 1 . . Weapon . | . . . . . . Parts Attached 56 | 1 12 7 29 7 . Power 4 | . 1 . 3 . . Engine 4 | . 1 . 3 . . Core . | . . . . . . Reactor . | . . . . . . Propulsion 17 | . 5 . 10 2 . Treads 14 | . 3 . 9 2 . Leg 2 | . 2 . . . . Wheel 1 | . . . 1 . . Hover . | . . . . . . Flight . | . . . . . . Utility 18 | 1 1 5 7 4 . Device 7 | 1 . 2 1 3 . Storage 4 | . 1 2 1 . . Processor 2 | . . 1 . 1 . Hackware . | . . . . . . Protection 5 | . . . 5 . . Artifact . | . . . . . . Weapon 17 | . 5 2 9 1 . Energy Gun . | . . . . . . Energy Cannon 2 | . . . 2 . . Ballistic Gun 5 | . 1 . 4 . . Ballistic Cannon 4 | . 2 . 2 . . Launcher 4 | . 1 2 . 1 . Special Weapon . | . . . . . . Impact Weapon 1 | . . . 1 . . Slashing Weapon 1 | . 1 . . . . Piercing Weapon . | . . . . . . Special Melee Weapon . | . . . . . . Unidentified Prototypes 3 | . . 1 1 1 . Parts Lost 15 | . 1 . 5 1 8 Power 2 | . . . 1 . 1 Propulsion 6 | . . . 2 1 3 Utility 2 | . . . . . 2 Weapon 5 | . 1 . 2 . 2 Highest Loss Streak 8 | . 1 . 2 1 8 To Critical Strikes 1 | . . . . . 1 Average Slot Usage (%) 98 | . 98 99 97 98 92 Engine 12 | . 14 14 10 11 9 Treads 28 | . 24 28 30 31 30 Device 14 | . 14 13 13 15 19 Storage 12 | . 14 14 11 11 11 Protection 4 | . . . 8 6 . Energy Cannon 1 | . . . 6 . . Ballistic Gun 11 | . 14 14 8 11 9 Ballistic Cannon 3 | . 7 . 5 . . Launcher 6 | . 2 12 . 10 10 Naked Turns . | . . . . . . Heaviest Build 48 | 14 23 35 48 40 33 Greatest Support 60 | 20 40 40 60 60 60 Greatest Overweight (x) 6 | . . . 2 . 6 Average Overweight (x) . | . . . . . . Largest Inventory Capacity 25 | 8 10 25 15 15 15 Average Capacity 12 | 8 9 10 14 15 15 Most Carried 15 | 6 10 10 15 15 15 Average Carried 12 | 6 8 9 14 13 14 Final Capacity 15 | 8 10 10 15 15 15 Final Carried 15 | 6 10 10 15 14 15 Class Distribution -------------------- 58% | Mutant 41% | Scavenger-Mutant Dominant Class ---------------- Mutant | -10/Materials Mutant | -10/Mines Scavenger-Mutant | -9/Materials Scavenger-Mutant | -9/Mines Scavenger-Mutant | -7/Zion Resources | -11 -10 -10 -9 -9 -7 ----------- Run | Jun Mat Min Mat Min Zio Matter Collected 1827 | 238 497 192 718 177 5 Remotely . | . . . . . . Salvage Created 3102 | 14 834 193 1734 327 . Parts 232 | 3 63 25 110 31 . Haulers Intercepted 6 | . 2 . 4 . . Recyclers Shooed 7 | . 2 . 5 . . Parts Field Recycled . | . . . . . . Retrieved Matter . | . . . . . . Parts Self-Destructed . | . . . . . . Prevented . | . . . . . . Kills | -11 -10 -10 -9 -9 -7 ------- Run | Jun Mat Min Mat Min Zio Combat Hostiles Destroyed 76 | . 15 13 30 18 . Guns 29 | . 7 11 10 1 . Cannons 26 | . 8 . 18 . . AOE 21 | . . 2 2 17 . Classes Destroyed 12 | 1 8 . 2 1 . Worker 4 | . 1 . . 3 . Builder 8 | . 3 . 4 1 . Tunneler 4 | 1 1 . . 2 . Hauler 6 | . 2 . 4 . . Recycler 6 | . 3 . 3 . . Operator 2 | . 1 . 1 . . Watcher 5 | . 2 . 3 . . Swarmer 25 | . 2 11 5 7 . Grunt 40 | . 13 2 15 10 . Brawler 1 | . . . 1 . . Duelist 1 | . . . . 1 . Sentry 9 | . . . 9 . . Best Kill Streak 5 | 1 4 5 4 5 . Combat Bots Only 4 | . 3 3 3 4 . Max Kills in Single Turn 3 | 1 1 1 3 3 . Gunslinging . | . . . . . . Exploded 3 | . . 1 1 3 . Melee . | . . . . . . Uniques/NPCs Destroyed . | . . . . . . Combat | -11 -10 -10 -9 -9 -7 -------- Run | Jun Mat Min Mat Min Zio Damage Taken 3350 | . 634 210 1281 543 682 Core 559 | . 153 6 100 54 246 Absorbed by Shields . | . . . . . . Regen/Repaired (Parts) 50 | . 50 . . . . Core Remaining (%) 68 | 100 . 36 . . . Volleys Fired 346 | 7 92 29 174 39 5 Largest 2 | 2 2 2 2 1 1 Hottest 83 | 40 59 53 83 30 23 Shots Fired 392 | 14 127 30 177 39 5 Gun 231 | 14 72 26 102 12 5 Cannon 130 | . 55 . 75 . . Launcher 31 | . . 4 . 27 . Special . | . . . . . . Kinetic 332 | 14 127 26 148 12 5 Thermal . | . . . . . . Explosive 31 | . . 4 . 27 . Electromagnetic 29 | . . . 29 . . Robot Hit Streak 19 | 4 11 5 19 9 4 Robot Miss Streak 5 | 4 5 3 2 2 1 Penetration Max . | . . . . . . Secondary Targets 1 | . 1 . . . . Max Gunslinging Chain 1 | . 1 . . . . Shots Hit Robots 264 | 7 75 18 139 22 3 Core Hits 146 | 2 37 14 57 34 2 Critical Kills . | . . . . . . Critical Parts Destroyed 1 | . 1 . . . . Critical Strikes 2 | . 2 . . . . Destroy 1 | . 1 . . . . Blast 1 | . 1 . . . . Melee Attacks 7 | . 6 . 1 . . Impact 1 | . . . 1 . . Slashing 6 | . 6 . . . . Piercing . | . . . . . . Sneak Attacks . | . . . . . . Combat Hostiles . | . . . . . . Follow-up Attacks . | . . . . . . Damage Inflicted 6330 | 66 1365 481 2874 1492 52 Guns 2085 | 66 471 224 1127 145 52 Cannons 2320 | . 894 . 1426 . . Explosions 1906 | . . 257 321 1328 . Melee . | . . . . . . Ramming 19 | . . . . 19 . Kinetic 3756 | 66 1365 224 1904 145 52 Thermal 85 | . . . 85 . . Explosive 1821 | . . 257 236 1328 . Electromagnetic 649 | . . . 649 . . Impact . | . . . . . . Slashing . | . . . . . . Piercing . | . . . . . . Highest Corruption . | . . . . . . Average Corruption . | . . . . . . Corruption Purged . | . . . . . . Corruption Blocked . | . . . . . . Overload Shots . | . . . . . . Overflow Damage 88 | . 19 . 59 10 . Projectiles 65 | . 19 . 46 . . Explosions 23 | . . . 13 10 . Melee . | . . . . . . Knockbacks 19 | . 9 . 10 . . Impact . | . . . . . . Kinetic 16 | . 8 . 8 . . Secondary 3 | . 1 . 2 . . Self-Inflicted Damage 238 | . . . 61 177 . Shots 7 | . . . 1 6 . Rammed 2 | . . . . 2 . Targets Rammed 4 | . . . . 4 . Kicked . | . . . . . . Crushed 2 | . . . . 2 . Highest Temperature 118 | . 47 2 118 47 . Average Temperature 23 | . 17 2 28 12 . Received Heat Transfer 1110 | . 348 21 537 204 . Siege Activations . | . . . . . . Robots Corrupted . | . . . . . . Combat Hostiles . | . . . . . . Parts Fried 1 | . . . 1 . . Impact Corruptions . | . . . . . . Robots Melted . | . . . . . . Combat Hostiles . | . . . . . . Parts Melted 3 | . . 2 1 . . Heat Transferred 150 | . . . 150 . . Parts Sabotaged . | . . . . . . Parts Stolen . | . . . . . . Parts Stripped . | . . . . . . Power Chain Reactions 1 | . . . 1 . . Missiles Intercepted . | . . . . . . Alert | -11 -10 -10 -9 -9 -7 ------- Run | Jun Mat Min Mat Min Zio Peak Influence 562 | 5 230 202 562 409 . Initial 141 | . 3 54 78 141 . Average 217 | 1 122 106 325 259 . Maximum Alert Level 2 | . 1 1 2 2 . Low Security (%) 45 | 100 89 89 13 16 . Level 1 44 | . 10 10 64 71 . Level 2 9 | . . . 21 11 . Level 3 . | . . . . . . Level 4 . | . . . . . . Level 5 . | . . . . . . High Security . | . . . . . . Max Security . | . . . . . . Squads Dispatched 6 | . 3 . 2 1 . Investigation 2 | . 2 . . . . Extermination . | . . . . . . Reinforcement 4 | . 1 . 2 1 . Assault . | . . . . . . Garrison . | . . . . . . Intercept . | . . . . . . Searches Triggered . | . . . . . . Construction Impeded 2 | . . . 1 1 . Haulers Reinforced . | . . . . . . Active Scanning Responses . | . . . . . . Cargo Convoy Interrupts . | . . . . . . Stealth | -11 -10 -10 -9 -9 -7 --------- Run | Jun Mat Min Mat Min Zio Distress Signals 6 | . 1 . 4 1 . Communications Jammed . | . . . . . . Distress Signals . | . . . . . . Times Spotted 104 | . 27 13 45 16 3 Peak Tracking Total 4 | . 4 3 4 4 2 Tactical Retreats 6 | . 3 . 3 . . Traps | -11 -10 -10 -9 -9 -7 ------- Run | Jun Mat Min Mat Min Zio Traps Triggered 1 | . 1 . . . . Indirectly . | . . . . . . Trap Hack Attempts . | . . . . . . Triggered . | . . . . . . Disarmed . | . . . . . . Reprogrammed . | . . . . . . Reused . | . . . . . . Traps Extracted . | . . . . . . Installed . | . . . . . . Triggered . | . . . . . . Machines | -11 -10 -10 -9 -9 -7 ---------- Run | Jun Mat Min Mat Min Zio Machines Disabled 6 | . 2 . 2 2 . Max in Single Turn 2 | . 1 . 1 2 . Machines Repaired . | . . . . . . Machines Sabotaged . | . . . . . . Overloaded Fab Kills . | . . . . . . Hacking | -11 -10 -10 -9 -9 -7 --------- Run | Jun Mat Min Mat Min Zio Machines Accessed 20 | . 8 1 11 . . Terminals 13 | . 6 . 7 . . Fabricators . | . . . . . . Repair Stations 2 | . 1 . 1 . . Recycling Units 3 | . 1 . 2 . . Scanalyzers 1 | . . . 1 . . Garrison Access . | . . . . . . Total Hacks 47 | . 21 1 25 . . Successful 24 | . 8 1 15 . . Failed 21 | . 12 . 9 . . Catastrophic 4 | . 2 . 2 . . Database Lockouts 2 | . 1 . 1 . . Manual 29 | . 14 . 14 . 1 Terminals 30 | . 15 . 15 . . Fabricators . | . . . . . . Repair Stations 6 | . 3 . 3 . . Recycling Units 6 | . 3 . 3 . . Scanalyzers 4 | . . . 4 . . Garrison Access . | . . . . . . Terminal Hacks 15 | . 5 1 9 . . Record 1 | . . . 1 . . Robot Analysis 4 | . 3 . 1 . . Open Door 1 | . . 1 . . . Branch Access Points 1 | . 1 . . . . Alert Level 1 | . . . 1 . . Unreport Threat 2 | . . . 2 . . Locate Traps 1 | . . . 1 . . Hauler Manifests 1 | . . . 1 . . Zone Layout 3 | . 1 . 2 . . Fabricator Hacks . | . . . . . . Repair Station Hacks 3 | . 2 . 1 . . Scan Component 2 | . 1 . 1 . . Repair 1 | . 1 . . . . Recycling Unit Hacks 2 | . 1 . 1 . . Retrieve Components 2 | . 1 . 1 . . Scanalyzer 4 | . . . 4 . . Insert Component 2 | . . . 2 . . Analyze 2 | . . . 2 . . Garrison Access Hacks . | . . . . . . Unauthorized Hacks . | . . . . . . Terminals . | . . . . . . Fabricators . | . . . . . . Repair Stations . | . . . . . . Recycling Units . | . . . . . . Scanalyzers . | . . . . . . Garrison Access . | . . . . . . Data Cores Recovered . | . . . . . . Used . | . . . . . . Hacking Detections 16 | . 8 . 8 . . Full Trace Events 4 | . 3 . 1 . . Feedback Events . | . . . . . . Feedback Blocked . | . . . . . . Robot Schematics Acquired . | . . . . . . Robots Built . | . . . . . . Authchips . | . . . . . . Time . | . . . . . . Total Robot Build Rating . | . . . . . . Part Schematics Acquired 2 | . . . 2 . . Parts Built . | . . . . . . Authchips . | . . . . . . Time . | . . . . . . Total Part Build Rating . | . . . . . . Parts Repaired 1 | . 1 . . . . Time 26 | . 26 . . . . Parts Recycled . | . . . . . . Recycled Matter . | . . . . . . Retrieved Matter . | . . . . . . Retrieved Components 14 | . 4 . 10 . . Parts Scanalyzed 2 | . . . 2 . . Part Schematics Acquired 2 | . . . 2 . . Parts Damaged . | . . . . . . Bothacking | -11 -10 -10 -9 -9 -7 ------------ Run | Jun Mat Min Mat Min Zio Used RIF Installer . | . . . . . . Robots Hacked . | . . . . . . Non-combat . | . . . . . . Combat . | . . . . . . Robot Hacks Applied . | . . . . . . Relay Couplers Released . | . . . . . . Fabnet Peak Effective % . | . . . . . . Robots Rewired . | . . . . . . Allies Hacked . | . . . . . . Hacks Repelled . | . . . . . . Allies | -11 -10 -10 -9 -9 -7 -------- Run | Jun Mat Min Mat Min Zio Total Allies 3 | . . 3 . . . Largest Group 3 | . . 3 . . . Highest-Rated Group 40 | . . 40 . . . Highest-Rated Ally 16 | . . 16 . . . Total Orders . | . . . . . . Ally Attacks 18 | . . 18 . . . Total Damage 197 | . . 197 . . . Kills 2 | . . 2 . . . Allies Corrupted . | . . . . . . Allies Melted . | . . . . . . Intel | -11 -10 -10 -9 -9 -7 ------- Run | Jun Mat Min Mat Min Zio Robot Analysis Total 4 | . 3 . 1 . . Derelict Logs Recovered 4 | . . 2 . 2 . Drone Launches . | . . . . . . Drone Recoveries . | . . . . . . Exploration | -11 -10 -10 -9 -9 -7 ------------- Run | Jun Mat Min Mat Min Zio Turns Passed 6849 | 43 1534 1154 1830 2082 206 Spaces Moved 3508 | 19 680 671 788 1234 116 Core 1 | . . . . . 1 Treads 3354 | . 557 671 777 1234 115 Legs 142 | 19 123 . . . . Wheels 11 | . . . 11 . . Hover . | . . . . . . Flight . | . . . . . . Fastest Speed 120 | 120 120 160 130 160 160 Average Speed 161 | 120 152 160 172 160 163 Slowest Speed 350 | 120 160 160 320 160 350 Overloaded Moves . | . . . . . . Propulsion Burnouts . | . . . . . . Robots Hopped . | . . . . . . Cave-ins Triggered . | . . . . . . Exploration Rate (%) 63 | 3 93 101 75 98 13 Regions Visited 5 Branch Regions 3 Pre-discovered Areas 1 | . . 1 . . . Known Exits Taken 4 | . 1 1 1 1 . Unknown Exits Taken 1 | 1 . . . . . Scrap Searched 2 | . . 1 . 1 . Spaces Dug 18 | . 3 . 1 14 . Terrain Destroyed 314 | . 6 36 46 226 . Melee 4 | . 3 . 1 . . Projectile 4 | . 3 . 1 . . AOE 306 | . . 36 44 226 . Terrain Rammed . | . . . . . . Walls Destroyed . | . . . . . . Machines Disabled . | . . . . . . Actions | -11 -10 -10 -9 -9 -7 --------- Run | Jun Mat Min Mat Min Zio Total 4306 | 26 1044 722 1084 1301 129 Wait 313 | . 231 9 56 10 7 Move 3503 | 18 679 670 787 1233 116 Hop . | . . . . . . Pick Up 34 | . 13 2 15 3 1 Fast Attach 17 | 1 1 2 12 1 . Attach 15 | . 5 1 6 3 . Detach 2 | . . . 1 1 . Swap 24 | . 6 4 11 3 . Drop 41 | . 11 5 21 4 . Fire 346 | 7 92 29 174 39 5 Melee 7 | . 6 . 1 . . Ram . | . . . . . . Kick . | . . . . . . Crush 4 | . . . . 4 . Escape Stasis . | . . . . . . Rewire . | . . . . . . Trap . | . . . . . . Miscellaneous . | . . . . . . Route ------- -11/Junkyard -10/Materials (discovered 5 exits: *Mat x3 / *Min / [*Sub]) -10/Mines (discovered 3 exits: *Mat x2 / [*Sub]) -9/Materials (discovered 5 exits: [*Mat x2] / *Min x2 / [*Sto]) -9/Mines (discovered 3 exits: [*Mat x2] / *Zio) -7/Zion (discovered 1 exit: [*Pro]) History --------- Turn | Location | Event 1 | -11/Junkyard | Discovered new exit (range 1) 44 | -11/Junkyard | Entered Materials 58 | -10/Materials | Identified exit to Mines 126 | -10/Materials | Central database locked down 309 | -10/Materials | Build established: Mutant 320 | -10/Materials | Discovered new exit (range 12) 347 | -10/Materials | Discovered new exit (range 5) 600 | -10/Materials | Derelicts attacked the area 738 | -10/Materials | Repaired Lgt. Treads 783 | -10/Materials | Discovered new exit (range 16) 1071 | -10/Materials | Core integrity fell below 50% 1138 | -10/Materials | Discovered new exit (range 8) 1578 | -10/Materials | Entered Mines 1614 | -10/Mines | Learned Materials garrison access intel 1640 | -10/Mines | Learned location of 1 exit from Materials 1744 | -10/Mines | Discovered new exit (range 5) 1756 | -10/Mines | Identified exit to Materials 1876 | -10/Mines | Assisted by bots powering up and referring to "LRC-V3" 2180 | -10/Mines | Discovered new exit (range 6) 2224 | -10/Mines | Learned location of Storage (-9) 2353 | -10/Mines | Received a Rocket Launcher from a helpful Derelict 2381 | -10/Mines | Discovered exit to Materials (range 8) 2406 | -10/Mines | Found the Drone Emporium 2414 | -10/Mines | Found Prototype Device 2414 | -10/Mines | Identified Sensor Drone Bay 2732 | -10/Mines | Entered Materials 2732 | -9/Materials | Evolved 2 slots: Propulsion x1, Utility x1 2733 | -9/Materials | Identified exit to Mines 2880 | -9/Materials | Discovered new exit (range 12) 3241 | -9/Materials | Discovered new exit (range 10) 3390 | -9/Materials | Central database locked down 3459 | -9/Materials | Build established: Scavenger-Mutant 3775 | -9/Materials | Discovered exit to Mines (range 12) 4416 | -9/Materials | Discovered new exit (range 5) 4562 | -9/Materials | Entered Mines 4563 | -9/Mines | A Derelict revealed a hidden shortcut to a safe place 4569 | -9/Mines | Identified exit to Zion 4578 | -9/Mines | Learned Materials trap positions 4990 | -9/Mines | Learned location of 1 exit from Proximity Caves 4997 | -9/Mines | Found a damaged Exp. Sensor Array with a note attached 5002 | -9/Mines | Found Prototype Device 5002 | -9/Mines | Identified Exp. Sensor Array 5070 | -9/Mines | Discovered new exit (range 7) 5294 | -9/Mines | Build established: Mutant 5396 | -9/Mines | Found a hidden stash of uninstalled traps 5492 | -9/Mines | Discovered new exit (range 9) 6149 | -9/Mines | Build established: Scavenger-Mutant 6644 | -9/Mines | Entered Zion 6749 | -7/Zion | Received a hallucinogenic algorithm 6764 | -7/Zion | Discovered new exit (range 11) 6824 | -7/Zion | Attacked by Zionites 6826 | -7/Zion | Core integrity fell below 50% 6827 | -7/Zion | Spotted C4-7ZP(B) 6827 | -7/Zion | Spotted CO-ZTD(B) 6849 | -7/Zion | Core integrity fell below 20% 6850 | -7/Zion | Destroyed by CO-ZTD(B) with Heavy Battle Rifle Last Messages --------------- 06819_ Slug penetrates CO-ZTD(B). 06819_ Subsystem restored. 06822_ Slug penetrates CO-ZTD(B). 06824_ PUBLIC SERVICE ANNOUNCEMENT: Zion is under attack! Defend our home! 06824_ Penetrated by Slug. 06825_ Slug penetrates Wall. 06825_ H-77 Assassin destroyed. 06827_ Imp. Ion Engine destroyed. 06831_ Lgt. Treads destroyed. 06834_ Acquired 5 matter. 06834_ Penetrated by Slug. 06834_ Structural Scanner destroyed. 06834_ Imp. Assault Rifle destroyed. 06837_ Lgt. Treads destroyed. 06837_ Exp. Sensor Array destroyed. 06841_ Mni. Grenade Launcher destroyed. 06841_ Slug penetrates System Quarantine Field Array. 06848_ Critical hit (Destroy). 06848_ Lgt. Treads destroyed. 06848_ Knocked back. Map ----- +----------------------------------------------------+ | ?????????????????????????????????????### ###?? | | ?????????????????????????????????????## < ###?? | | ??????????????????????????????????????# ##?? | | ??????????????????????????????????????## ##?? | | ??????????????????????????????????????## ##?? | | ??????????????????????????????????????## ###?? | | ??????????????????????????????????????### ###??? | | ???????????????????????????????????????## ###???? | | ???????????????????????????????????????## ###???# | | ?????????????????????????????????######## ####??# | | ????????????????????????????????######### ####??# | | ????????????????????????????????### ## ##??# | | ????????????????????????????????## ###?? | | ????????????????????????????????## ####? | | ????????????????????????????????### ### #### | | ????????????????????????????????### #### ### | | ???????????????????????????????#### ##### | | ???????????????????????????????### ###### | | ????????????????####?############ ###### | | ???????????????##BB"############# ##### | | ???????????????##BB """"""" """## ####X | | ??????????????### "" " # ###### | | ?????????? # # ##### | | ?????????? % ;;##?### | | ?????????? %% %% ############ | | ??????????????# %@ ### ############## | | ??????????????### ""### ## ######### | | ???????????????##BB """" ""### # ##### | | ???????????????##BB ############## ?##"" | | ???????????????################### #"& | | ????????????????????????????????###### #### & | | ?????????????????????????????????###### ## | | ?????????????????????????????????????## | | ????????????????????????????????????### | | ????????????????????????????????????## ### | | ???????????????????????????????## ?#### | | ???????????????????????????????## ?????## | | ???????????????????????????????## ???????### # | | ???????????????????????????????###???????## ## | | ?????????????????????????????????????????####### | | ?????????????????????????????????????????####### | | ?????????????????????????????????????????????## | | ?????????????????????????????????????????????## | | ????????????????????????????????????????????#### | | ????????????????????????????????????????????### | | ????????????????????????????????????????????## | | ????????????????????????????????????????????### | | ????????????????????????????????????????????## | | ????????????????????????????????????????????## | | ????????????????????????????????????????????### # | +----------------------------------------------------+ Best States ------------- Heat Dissipation 28 Energy Generation 12 Energy Capacity 265 Matter Stores 300 Matter Capacity 300 Sight Range 16 Robot Scan Range 20 Terrain Scan Density 10 Armor Coverage 150 Evasion (%) 55 Recoil Reduction 3 Item Schematics ----------------- Huge Storage Unit | -9/Materials | Scanalyzed Med. Storage Unit | -9/Materials | Scanalyzed Robot Schematics ------------------ None Fabricated ------------ Nothing Alien Tech Used ----------------- None Achievements -------------- None Challenges ------------ None Game ------ Seed EncryptedThunderScythe Manual? 0 Play Time 01:09:22 Cumulative 53.7 hours Start 2023.08.18 @ 12:53:16 End 2023.08.18 @ 16:45:45 Sessions 1 Manual Loads 0 Difficulty Rogue Special Mode None Game No. 31 Rogue 31 Adventurer 0 Explorer 0 Win Type - Total 0 Types 0/0/0/0/0/0/0/0/0 Lore% 31 Gallery% 27 Achievement% 35 Wizard Run 0 Options --------- ASCII 0 Keyboard 0 Movement Mouse Keybinds 0 Fullscreen 1 Font 16/SmallcapsGlow Map View 84x54 Tactical HUD 1 Map Filters NONE Filters NONE Steam 1 RUN: 1ff990b8-0b56-42cc-9f47-7981049aadef